Workbook

Sheet Mark All
A1: 1 | B1: 2 | C1: 3 | D1: 4 | E1: 5 | F1: 6 | G1: 7 | H1: 8 | I1: 9 | J1: 10 | K1: 11 | L1: 12 | M1: 13 | N1: 14 | O1: 15 | P1: 16 | Q1: 17 | R1: 18 | S1: 19 | T1: 20 | U1: 21 | V1: 22 | W1: 23 | X1: 24 | Y1: 25 | Z1: 26 | AA1: 27 | AB1: 28 | AC1: 29 | AD1: 30 | AE1: 31 | AF1: 32 | AG1: 33 | AH1: 34 | AI1: 35 | AJ1: 36 | AK1: 37 | AL1: 38 | AM1: 39 | AN1: 40 | AO1: 41 | AP1: 42 | AQ1: 43 | AR1: 44 | AS1: 45 | AT1: 46 | AU1: 47 | AV1: 48 | AW1: 49 | AX1: 50 | AY1: 51 | AZ1: 52 | BA1: 53 | BB1: 54 | BC1: 55 | BD1: 56 | BE1: 57 | BF1: 58 | BG1: 59 | BH1: 60 | BI1: 61 | BJ1: 62 | BK1: 63 | BL1: 64 | BM1: 65 | BN1: 66 | BO1: 67 | BP1: 68 | BQ1: 69 | BR1: 70 | BS1: 71 | BT1: 72 | BU1: 73 | BV1: 74 | BW1: 75 | BX1: 76 | BY1: 77 | BZ1: 78 | CA1: 79 | CB1: 80 | CC1: 81 | CD1: 82 | CE1: 83 | CF1: 84 | CG1: 85 | CH1: 86 | CI1: 87 | CJ1: 88 | CK1: 89 | CL1: 90 | CM1: 91 | CN1: 92 | CO1: 93 | CP1: 94 | CQ1: 95 | CR1: 96 | CS1: 97 | CT1: 98 | CU1: 99 | CV1: 100 | CW1: 101 | CX1: 102 | CY1: 103 | CZ1: 104 | DA1: 105 | DB1: 106 | DC1: 107 | DD1: 108 | DE1: 109 | DF1: 110 | DG1: 111 | DH1: 112 | DI1: 113 | DJ1: 114 | DK1: 115 | DL1: 116 | DM1: 117 | DN1: 118 | DO1: 119 | DP1: 120 | DQ1: 121 | DR1: 122 | DS1: 123 | DT1: 124 | DU1: 125 | DV1: 126 | DW1: 127 | DX1: 128 | DY1: 129 | DZ1: 130 | EA1: 131 | EB1: 132 | EC1: 133 | ED1: 134 | EE1: 135 | EF1: 136 | EG1: 137 | EH1: 138 | EI1: 139 | EJ1: 140 | EK1: 141 | EL1: 142 | EM1: 143 | EN1: 144 | EO1: 145 | EP1: 146 | EQ1: 147 | ER1: 148 | ES1: 149 | ET1: 150 | EU1: 151 | EV1: 152 | EW1: 153 | EX1: 154 | EY1: 155 | EZ1: 156 | FA1: 157 | FB1: 158 | FC1: 159 | FD1: 160 | FE1: 161 | FF1: 162 | FG1: 163 | FH1: 164 | FI1: 165 | FJ1: 166 | FK1: 167 | FL1: 168 | FM1: 169 | FN1: 170 | FO1: 171 | FP1: 172 | FQ1: 173 | FR1: 174 | FS1: 175 | FT1: 176 | FU1: 177 | FV1: 178 | FW1: 179 | FX1: 180 | FY1: 181 | FZ1: 182 | GA1: 183 | GB1: 184 | GC1: 185 | GD1: 186 | GE1: 187
B2: ALL
B4: النهاية العظمى | C4: 20 | D4: 20 | E4: 20 | F4: 40 | G4: 100 | H4: 20 | I4: 20 | J4: 20 | K4: 40 | L4: 200 | M4: 100
A5: الرقم | B5: الاسم | C5: التربية الإسلامية | N5: العربية لغتي | Y5: اللغة الإنجليزية | AJ5: الرياضيات | AU5: الدراسات الاجتماعية | CB5: العلوم | DW5: التربية الفنية | EH5: التربية الرياضية | ES5: الحاسوب المهارات الرقمية | FD5: الثقافة المالية | FO5: اللغة الفرنسية | FZ5: الأسماء
C6: 1 | N6: 2 | Y6: 3 | AJ6: 4 | AU6: التاريخ | BE6: الجغرافيا | BO6: التربية الوطنية و المدنية | BY6: مجموع فصل اول | BZ6: مجموع فصل ثاني | CA6: معدل | CB6: الفيزياء | CM6: العلوم الحياتية | CX6: الكيمياء | DI6: علوم الارض و البيئة | DT6: مجموع الفصل الاول | DU6: مجموع الفصل الاول | DV6: معدل | DW6: 12 | EH6: 13 | ES6: 14 | FD6: 15 | FO6: 16 | FZ6: الجنـسيـة | GA6: مكـان الـولادة | GB6: تاريخ الولادة | GE6: الرقم الوطني
C7: فصل اول | H7: فصل ثاني | N7: فصل اول | S7: فصل ثاني | Y7: فصل اول | AD7: فصل ثاني | AJ7: فصل اول | AO7: فصل ثاني | AU7: فصل اول | AZ7: فصل ثاني | BE7: فصل اول | BJ7: فصل ثاني | BO7: فصل اول | BT7: فصل ثاني | CB7: فصل اول | CG7: فصل ثاني | CM7: فصل اول | CR7: فصل ثاني | CX7: فصل اول | DC7: فصل ثاني | DI7: فصل اول | DN7: فصل ثاني | DW7: فصل اول | EB7: فصل ثاني | EH7: فصل اول | EM7: فصل ثاني | ES7: فصل اول | EX7: فصل ثاني | FD7: فصل اول | FI7: فصل ثاني | FO7: فصل اول | FT7: فصل ثاني | GB7: الـيـوم | GC7: الـشـهـر | GD7: الــسـنـة
C8: التقويم الاول | D8: التقويم الثاني | E8: التقويم الثالث | F8: التقويم الرابع | G8: مجموع | H8: التقويم الاول | I8: التقويم الثاني | J8: التقويم الثالث | K8: التقويم الرابع | L8: مجموع | M8: معدل | N8: التقويم الاول | O8: التقويم الثاني | P8: التقويم الثالث | Q8: التقويم الرابع | R8: مجموع | S8: التقويم الاول | T8: التقويم الثاني | U8: التقويم الثالث | V8: التقويم الرابع | W8: مجموع | X8: معدل | Y8: التقويم الاول | Z8: التقويم الثاني | AA8: التقويم الثالث | AB8: التقويم الرابع | AC8: مجموع | AD8: التقويم الاول | AE8: التقويم الثاني | AF8: التقويم الثالث | AG8: التقويم الرابع | AH8: مجموع | AI8: معدل | AJ8: التقويم الاول | AK8: التقويم الثاني | AL8: التقويم الثالث | AM8: التقويم الرابع | AN8: مجموع | AO8: التقويم الاول | AP8: التقويم الثاني | AQ8: التقويم الثالث | AR8: التقويم الرابع | AS8: مجموع | AT8: معدل | AU8: التقويم الاول | AV8: التقويم الثاني | AW8: التقويم الثالث | AX8: التقويم الرابع | AY8: مجموع | AZ8: التقويم الاول | BA8: التقويم الثاني | BB8: التقويم الثالث | BC8: التقويم الرابع | BD8: مجموع | BE8: التقويم الاول | BF8: التقويم الثاني | BG8: التقويم الثالث | BH8: التقويم الرابع | BI8: مجموع | BJ8: التقويم الاول | BK8: التقويم الثاني | BL8: التقويم الثالث | BM8: التقويم الرابع | BN8: مجموع | BO8: التقويم الاول | BP8: التقويم الثاني | BQ8: التقويم الثالث | BR8: التقويم الرابع | BS8: مجموع | BT8: التقويم الاول | BU8: التقويم الثاني | BV8: التقويم الثالث | BW8: التقويم الرابع | BX8: مجموع | CB8: التقويم الاول | CC8: التقويم الثاني | CD8: التقويم الثالث | CE8: التقويم الرابع | CF8: مجموع | CG8: التقويم الاول | CH8: التقويم الثاني | CI8: التقويم الثالث | CJ8: التقويم الرابع | CK8: مجموع | CL8: معدل | CM8: التقويم الاول | CN8: التقويم الثاني | CO8: التقويم الثالث | CP8: التقويم الرابع | CQ8: مجموع | CR8: التقويم الاول | CS8: التقويم الثاني | CT8: التقويم الثالث | CU8: التقويم الرابع | CV8: مجموع | CW8: معدل | CX8: التقويم الاول | CY8: التقويم الثاني | CZ8: التقويم الثالث | DA8: التقويم الرابع | DB8: مجموع | DC8: التقويم الاول | DD8: التقويم الثاني | DE8: التقويم الثالث | DF8: التقويم الرابع | DG8: مجموع | DH8: معدل | DI8: التقويم الاول | DJ8: التقويم الثاني | DK8: التقويم الثالث | DL8: التقويم الرابع | DM8: مجموع | DN8: التقويم الاول | DO8: التقويم الثاني | DP8: التقويم الثالث | DQ8: التقويم الرابع | DR8: مجموع | DS8: معدل | DW8: التقويم الاول | DX8: التقويم الثاني | DY8: التقويم الثالث | DZ8: التقويم الرابع | EA8: مجموع | EB8: التقويم الاول | EC8: التقويم الثاني | ED8: التقويم الثالث | EE8: التقويم الرابع | EF8: مجموع | EG8: معدل | EH8: التقويم الاول | EI8: التقويم الثاني | EJ8: التقويم الثالث | EK8: التقويم الرابع | EL8: مجموع | EM8: التقويم الاول | EN8: التقويم الثاني | EO8: التقويم الثالث | EP8: التقويم الرابع | EQ8: مجموع | ER8: معدل | ES8: التقويم الاول | ET8: التقويم الثاني | EU8: التقويم الثالث | EV8: التقويم الرابع | EW8: مجموع | EX8: التقويم الاول | EY8: التقويم الثاني | EZ8: التقويم الثالث | FA8: التقويم الرابع | FB8: مجموع | FC8: معدل | FD8: التقويم الاول | FE8: التقويم الثاني | FF8: التقويم الثالث | FG8: التقويم الرابع | FH8: مجموع | FI8: التقويم الاول | FJ8: التقويم الثاني | FK8: التقويم الثالث | FL8: التقويم الرابع | FM8: مجموع | FN8: معدل | FO8: التقويم الاول | FP8: التقويم الثاني | FQ8: التقويم الثالث | FR8: التقويم الرابع | FS8: مجموع | FT8: التقويم الاول | FU8: التقويم الثاني | FV8: التقويم الثالث | FW8: التقويم الرابع | FX8: مجموع | FY8: معدل
A9: 1 | B9: محمد | C9: 20 | D9: 20 | E9: 20 | F9: 40 | G9: =IF(COUNT(C9:F9)>3,SUM(C9:F9),"") -> 100 | H9: 14 | I9: 36 | J9: 47 | K9: 40 | L9: =IF(COUNT(H9:K9)>3,SUM(H9:K9),"") -> 137 | M9: =IF(COUNT(G9,L9)>1,ROUND((G9+L9)/2,0),"") -> 119 | N9: 15 | O9: 16 | P9: 12 | Q9: 14 | R9: =IF(COUNT(N9:Q9)>3,SUM(N9:Q9),"") -> 57 | S9: 20 | T9: 15 | U9: 14 | V9: 13 | W9: =IF(COUNT(S9:V9)>3,SUM(S9:V9),"") -> 62 | X9: =IF(COUNT(R9,W9)>1,ROUND((R9+W9)/2,0),"") -> 60 | Y9: 15 | Z9: 14 | AA9: 12 | AB9: 11 | AC9: =IF(COUNT(Y9:AB9)>3,SUM(Y9:AB9),"") -> 52 | AD9: 11 | AE9: 11 | AF9: 12 | AG9: 15 | AH9: =IF(COUNT(AD9:AG9)>3,SUM(AD9:AG9),"") -> 49 | AI9: =IF(COUNT(AC9,AH9)>1,ROUND((AC9+AH9)/2,0),"") -> 51 | AJ9: 12 | AK9: 18 | AL9: 12 | AM9: 15 | AN9: =IF(COUNT(AJ9:AM9)>3,SUM(AJ9:AM9),"") -> 57 | AO9: 16 | AP9: 20 | AQ9: 15 | AR9: 18 | AS9: =IF(COUNT(AO9:AR9)>3,SUM(AO9:AR9),"") -> 69 | AT9: =IF(COUNT(AN9,AS9)>1,ROUND((AN9+AS9)/2,0),"") -> 63 | AU9: 12 | AV9: 15 | AW9: 18 | AX9: 13 | AY9: =IF(COUNT(AU9:AX9)>3,SUM(AU9:AX9),"") -> 58 | AZ9: 18 | BA9: 20 | BB9: 15 | BC9: 11 | BD9: =IF(COUNT(AZ9:BC9)>3,SUM(AZ9:BC9),"") -> 64 | BE9: 16 | BF9: 19 | BG9: 20 | BH9: 22 | BI9: =IF(COUNT(BE9:BH9)>3,SUM(BE9:BH9),"") -> 77 | BJ9: 16 | BK9: 18 | BL9: 20 | BM9: 15 | BN9: =IF(COUNT(BJ9:BM9)>3,SUM(BJ9:BM9),"") -> 69 | BO9: 10 | BP9: 15 | BQ9: 12 | BR9: 18 | BS9: =IF(COUNT(BO9:BR9)>3,SUM(BO9:BR9),"") -> 55 | BT9: 14 | BU9: 20 | BV9: 15 | BW9: 14 | BX9: =IF(COUNT(BT9:BW9)>3,SUM(BT9:BW9),"") -> 63 | BY9: =IFERROR(ROUND(((AY9+BI9+BS9)*2)/3,0),"") -> 127 | BZ9: =IFERROR(ROUND(((BD9+BN9+BX9)*2)/3,0),"") -> 131 | CA9: =IFERROR(ROUND((BY9+BZ9)/2,0),"") -> 129 | CB9: 14 | CC9: 12 | CD9: 16 | CE9: 18 | CF9: =IF(COUNT(CB9:CE9)>3,SUM(CB9:CE9),"") -> 60 | CG9: 23 | CH9: 11 | CI9: 12 | CJ9: 15 | CK9: =IF(COUNT(CG9:CJ9)>3,SUM(CG9:CJ9),"") -> 61 | CL9: =IF(COUNT(CF9,CK9)>1,ROUND((CF9+CK9)/2,0),"") -> 61 | CM9: 18 | CN9: 13 | CO9: 15 | CP9: 12 | CQ9: =IF(COUNT(CM9:CP9)>3,SUM(CM9:CP9),"") -> 58 | CR9: 20 | CS9: 11 | CT9: 15 | CU9: 10 | CV9: =IF(COUNT(CR9:CU9)>3,SUM(CR9:CU9),"") -> 56 | CW9: =IF(COUNT(CQ9,CV9)>1,ROUND((CQ9+CV9)/2,0),"") -> 57 | CX9: 15 | CY9: 18 | CZ9: 17 | DA9: 20 | DB9: =IF(COUNT(CX9:DA9)>3,SUM(CX9:DA9),"") -> 70 | DC9: 14 | DD9: 13 | DE9: 15 | DF9: 11 | DG9: =IF(COUNT(DC9:DF9)>3,SUM(DC9:DF9),"") -> 53 | DH9: =IF(COUNT(DB9,DG9)>1,ROUND((DB9+DG9)/2,0),"") -> 62 | DI9: 15 | DJ9: 19 | DK9: 22 | DL9: 20 | DM9: =IF(COUNT(DI9:DL9)>3,SUM(DI9:DL9),"") -> 76 | DN9: 17 | DO9: 10 | DP9: 16 | DQ9: 12 | DR9: =IF(COUNT(DN9:DQ9)>3,SUM(DN9:DQ9),"") -> 55 | DS9: =IF(COUNT(DM9,DR9)>1,ROUND((DM9+DR9)/2,0),"") -> 66 | DT9: =IFERROR(ROUND((CF9+CQ9+DB9+DM9),0),"") -> 264 | DU9: =IFERROR(ROUND((CK9+CV9+DG9+DR9),0),"") -> 225 | DV9: =IFERROR(ROUND((CL9+CW9+DH9+DS9),0),"") -> 246 | DW9: 18 | DX9: 20 | DY9: 15 | DZ9: 11 | EA9: =IF(COUNT(DW9:DZ9)>3,SUM(DW9:DZ9),"") -> 64 | EB9: 19 | EC9: 20 | ED9: 14 | EE9: 16 | EF9: =IF(COUNT(EB9:EE9)>3,SUM(EB9:EE9),"") -> 69 | EG9: =IF(COUNT(EA9,EF9)>1,ROUND((EA9+EF9)/2,0),"") -> 67 | EH9: 20 | EI9: 21 | EJ9: 15 | EK9: 18 | EL9: =IF(COUNT(EH9:EK9)>3,SUM(EH9:EK9),"") -> 74 | EM9: 16 | EN9: 20 | EO9: 14 | EP9: 12 | EQ9: =IF(COUNT(EM9:EP9)>3,SUM(EM9:EP9),"") -> 62 | ER9: =IF(COUNT(EL9,EQ9)>1,ROUND((EL9+EQ9)/2,0),"") -> 68 | ES9: 19 | ET9: 14 | EU9: 11 | EV9: 12 | EW9: =IF(COUNT(ES9:EV9)>3,SUM(ES9:EV9),"") -> 56 | EX9: 20 | EY9: 20 | EZ9: 15 | FA9: 15 | FB9: =IF(COUNT(EX9:FA9)>3,SUM(EX9:FA9),"") -> 70 | FC9: =IF(COUNT(EW9,FB9)>1,ROUND((EW9+FB9)/2,0),"") -> 63 | FD9: 22 | FE9: 18 | FF9: 18 | FG9: 20 | FH9: =IF(COUNT(FD9:FG9)>3,SUM(FD9:FG9),"") -> 78 | FI9: 17 | FJ9: 23 | FK9: 20 | FL9: 15 | FM9: =IF(COUNT(FI9:FL9)>3,SUM(FI9:FL9),"") -> 75 | FN9: =IF(COUNT(FH9,FM9)>1,ROUND((FH9+FM9)/2,0),"") -> 77 | FO9: 18 | FP9: 16 | FQ9: 14 | FR9: 10 | FS9: =IF(COUNT(FO9:FR9)>3,SUM(FO9:FR9),"") -> 58 | FT9: 11 | FU9: 15 | FV9: 40 | FW9: 20 | FX9: =IF(COUNT(FT9:FW9)>3,SUM(FT9:FW9),"") -> 86 | FY9: =IF(COUNT(FS9,FX9)>1,ROUND((FS9+FX9)/2,0),"") -> 72
A10: 2 | B10: بدر | C10: 10 | D10: 15 | E10: 16 | F10: 34 | G10: 75 | H10: 12 | I10: 17 | J10: 20 | K10: 40 | L10: =IF(COUNT(H10:K10)>3,SUM(H10:K10),"") -> 89 | M10: =IF(COUNT(G10,L10)>1,ROUND((G10+L10)/2,0),"") -> 82 | N10: 22 | O10: 16 | P10: 25 | Q10: 17 | R10: =IF(COUNT(N10:Q10)>3,SUM(N10:Q10),"") -> 80 | S10: 22 | T10: 10 | U10: 15 | V10: 17 | W10: 64 | X10: 72 | Y10: 30 | Z10: 25 | AA10: 18 | AB10: 24 | AC10: 97 | AD10: 19 | AE10: 10 | AF10: 16 | AG10: 18 | AH10: =IF(COUNT(AD10:AG10)>3,SUM(AD10:AG10),"") -> 63 | AI10: 80 | AJ10: 18 | AK10: 20 | AL10: 15 | AM10: 18 | AN10: =IF(COUNT(AJ10:AM10)>3,SUM(AJ10:AM10),"") -> 71 | AO10: 12 | AP10: 22 | AQ10: 19 | AR10: 23 | AS10: =IF(COUNT(AO10:AR10)>3,SUM(AO10:AR10),"") -> 76 | AT10: =IF(COUNT(AN10,AS10)>1,ROUND((AN10+AS10)/2,0),"") -> 74 | AU10: 17 | AV10: 12 | AW10: 20 | AX10: 18 | AY10: =IF(COUNT(AU10:AX10)>3,SUM(AU10:AX10),"") -> 67 | AZ10: 20 | BA10: 11 | BB10: 18 | BC10: 15 | BD10: =IF(COUNT(AZ10:BC10)>3,SUM(AZ10:BC10),"") -> 64 | BE10: 17 | BF10: 18 | BG10: 15 | BH10: 11 | BI10: =IF(COUNT(BE10:BH10)>3,SUM(BE10:BH10),"") -> 61 | BJ10: 18 | BK10: 14 | BL10: 10 | BM10: 23 | BN10: =IF(COUNT(BJ10:BM10)>3,SUM(BJ10:BM10),"") -> 65 | BO10: 14 | BP10: 19 | BQ10: 17 | BR10: 20 | BS10: =IF(COUNT(BO10:BR10)>3,SUM(BO10:BR10),"") -> 70 | BT10: 23 | BU10: 30 | BV10: 14 | BW10: 14 | BX10: =IF(COUNT(BT10:BW10)>3,SUM(BT10:BW10),"") -> 81 | BY10: =IFERROR(ROUND(((AY10+BI10+BS10)*2)/3,0),"") -> 132 | BZ10: =IFERROR(ROUND(((BD10+BN10+BX10)*2)/3,0),"") -> 140 | CA10: =IFERROR(ROUND((BY10+BZ10)/2,0),"") -> 136 | CB10: 11 | CC10: 15 | CD10: 10 | CE10: 22 | CF10: =IF(COUNT(CB10:CE10)>3,SUM(CB10:CE10),"") -> 58 | CG10: 20 | CH10: 18 | CI10: 16 | CJ10: 10 | CK10: =IF(COUNT(CG10:CJ10)>3,SUM(CG10:CJ10),"") -> 64 | CL10: =IF(COUNT(CF10,CK10)>1,ROUND((CF10+CK10)/2,0),"") -> 61 | CM10: 19 | CN10: 23 | CO10: 20 | CP10: 18 | CQ10: =IF(COUNT(CM10:CP10)>3,SUM(CM10:CP10),"") -> 80 | CR10: 11 | CS10: 20 | CT10: 19 | CU10: 23 | CV10: =IF(COUNT(CR10:CU10)>3,SUM(CR10:CU10),"") -> 73 | CW10: =IF(COUNT(CQ10,CV10)>1,ROUND((CQ10+CV10)/2,0),"") -> 77 | CX10: 22 | CY10: 14 | CZ10: 18 | DA10: 12 | DB10: =IF(COUNT(CX10:DA10)>3,SUM(CX10:DA10),"") -> 66 | DC10: 10 | DD10: 15 | DE10: 18 | DF10: 17 | DG10: =IF(COUNT(DC10:DF10)>3,SUM(DC10:DF10),"") -> 60 | DH10: =IF(COUNT(DB10,DG10)>1,ROUND((DB10+DG10)/2,0),"") -> 63 | DI10: 10 | DJ10: 21 | DK10: 20 | DL10: 23 | DM10: =IF(COUNT(DI10:DL10)>3,SUM(DI10:DL10),"") -> 74 | DN10: 14 | DO10: 11 | DP10: 19 | DQ10: 20 | DR10: =IF(COUNT(DN10:DQ10)>3,SUM(DN10:DQ10),"") -> 64 | DS10: =IF(COUNT(DM10,DR10)>1,ROUND((DM10+DR10)/2,0),"") -> 69 | DT10: =IFERROR(ROUND((CF10+CQ10+DB10+DM10),0),"") -> 278 | DU10: =IFERROR(ROUND((CK10+CV10+DG10+DR10),0),"") -> 261 | DV10: =IFERROR(ROUND((CL10+CW10+DH10+DS10),0),"") -> 270 | DW10: 14 | DX10: 18 | DY10: 11 | DZ10: 10 | EA10: =IF(COUNT(DW10:DZ10)>3,SUM(DW10:DZ10),"") -> 53 | EB10: 23 | EC10: 18 | ED10: 12 | EE10: 19 | EF10: =IF(COUNT(EB10:EE10)>3,SUM(EB10:EE10),"") -> 72 | EG10: =IF(COUNT(EA10,EF10)>1,ROUND((EA10+EF10)/2,0),"") -> 63 | EH10: 14 | EI10: 40 | EJ10: 25 | EK10: 20 | EL10: =IF(COUNT(EH10:EK10)>3,SUM(EH10:EK10),"") -> 99 | EM10: 23 | EN10: 42 | EO10: 44 | EP10: 45 | EQ10: =IF(COUNT(EM10:EP10)>3,SUM(EM10:EP10),"") -> 154 | ER10: =IF(COUNT(EL10,EQ10)>1,ROUND((EL10+EQ10)/2,0),"") -> 127 | ES10: 11 | ET10: 15 | EU10: 10 | EV10: 19 | EW10: =IF(COUNT(ES10:EV10)>3,SUM(ES10:EV10),"") -> 55 | EX10: 22 | EY10: 16 | EZ10: 10 | FA10: 10 | FB10: =IF(COUNT(EX10:FA10)>3,SUM(EX10:FA10),"") -> 58 | FC10: =IF(COUNT(EW10,FB10)>1,ROUND((EW10+FB10)/2,0),"") -> 57 | FD10: 40 | FE10: 30 | FF10: 15 | FG10: 22 | FH10: =IF(COUNT(FD10:FG10)>3,SUM(FD10:FG10),"") -> 107 | FI10: 19 | FJ10: 28 | FK10: 22 | FL10: 41 | FM10: =IF(COUNT(FI10:FL10)>3,SUM(FI10:FL10),"") -> 110 | FN10: =IF(COUNT(FH10,FM10)>1,ROUND((FH10+FM10)/2,0),"") -> 109 | FO10: 10 | FP10: 18 | FQ10: 44 | FR10: 17 | FS10: =IF(COUNT(FO10:FR10)>3,SUM(FO10:FR10),"") -> 89 | FT10: 12 | FU10: 22 | FV10: 38 | FW10: 12 | FX10: =IF(COUNT(FT10:FW10)>3,SUM(FT10:FW10),"") -> 84 | FY10: =IF(COUNT(FS10,FX10)>1,ROUND((FS10+FX10)/2,0),"") -> 87
A11: 3 | B11: كمال | C11: 35 | D11: 10 | E11: 62 | F11: 53 | G11: 160 | H11: 16 | I11: 74 | J11: 44 | K11: 25 | L11: 159 | M11: 160 | N11: 28 | O11: 10 | P11: 17 | Q11: 53 | R11: 108 | S11: 41 | T11: 74 | U11: 71 | V11: 33 | W11: =IF(COUNT(S11:V11)>3,SUM(S11:V11),"") -> 219 | X11: 164 | Y11: 55 | Z11: 12 | AA11: 14 | AB11: 40 | AC11: 121 | AD11: 16 | AE11: 18 | AF11: 24 | AG11: 27 | AH11: 85 | AI11: 103 | AJ11: 23 | AK11: 22 | AL11: 18 | AM11: 23 | AN11: =IF(COUNT(AJ11:AM11)>3,SUM(AJ11:AM11),"") -> 86 | AO11: 47 | AP11: 14 | AQ11: 37 | AR11: 29 | AS11: 127 | AT11: 107 | BZ11: =IFERROR(ROUND(((BD11+BN11+BX11)*2)/3,0),"") ->  | CA11: =IFERROR(ROUND((BY11+BZ11)/2,0),"") ->  | CV11: =IF(COUNT(CR11:CU11)>3,SUM(CR11:CU11),"") ->  | CW11: =IF(COUNT(CQ11,CV11)>1,ROUND((CQ11+CV11)/2,0),"") ->  | DG11: =IF(COUNT(DC11:DF11)>3,SUM(DC11:DF11),"") ->  | DH11: =IF(COUNT(DB11,DG11)>1,ROUND((DB11+DG11)/2,0),"") ->  | DT11: =IFERROR(ROUND((CF11+CQ11+DB11+DM11),0),"") ->  | DU11: =IFERROR(ROUND((CK11+CV11+DG11+DR11),0),"") ->  | DV11: =IFERROR(ROUND((CL11+CW11+DH11+DS11),0),"") ->  | EW11: =IF(COUNT(ES11:EV11)>3,SUM(ES11:EV11),"") ->  | FB11: =IF(COUNT(EX11:FA11)>3,SUM(EX11:FA11),"") ->  | FC11: =IF(COUNT(EW11,FB11)>1,ROUND((EW11+FB11)/2,0),"") -> 
A12: 4 | B12: يوسف | C12: 45 | D12: 23 | E12: 18 | F12: 44 | G12: 130 | H12: 48 | I12: 63 | J12: 33 | K12: 85 | L12: 229 | M12: 180 | N12: 47 | O12: 23 | P12: 22 | Q12: 44 | R12: 136 | S12: 36 | T12: 29 | U12: 48 | V12: 90 | W12: =IF(COUNT(S12:V12)>3,SUM(S12:V12),"") -> 203 | X12: =IF(COUNT(R12,W12)>1,ROUND((R12+W12)/2,0),"") -> 170 | Y12: 48 | Z12: 23 | AA12: 18 | AB12: 21 | AC12: 110 | AD12: 29 | AE12: 15 | AF12: 32 | AG12: 42 | AH12: 118 | AI12: 114 | AJ12: 63 | AK12: 40 | AL12: 15 | AM12: 24 | AN12: 142 | AO12: 52 | AP12: 60 | AQ12: 33 | AR12: 28 | AS12: 173 | AT12: 158
A13: 5 | W13: =IF(COUNT(S13:V13)>3,SUM(S13:V13),"") -> 
A14: 6
A15: 7
A16: 8
A17: 9
A18: 10
A19: 11
A20: 12
A21: 13
A22: 14
A23: 15
A24: 16
A25: 17
A26: 18
A27: 19
A28: 20
A29: 21
A30: 22
A31: 23
A32: 24
A33: 25
A34: 26
A35: 27
A36: 28
A37: 29
A38: 30
A39: 31
A40: 32
A41: 33 | AC41: =IF(COUNT(Y41:AB41)>3,SUM(Y41:AB41),"") ->  | AH41: =IF(COUNT(AD41:AG41)>3,SUM(AD41:AG41),"") ->  | AI41: =IF(COUNT(AC41,AH41)>1,ROUND((AC41+AH41)/2,0),"") ->  | AN41: =IF(COUNT(AJ41:AM41)>3,SUM(AJ41:AM41),"") ->  | AS41: =IF(COUNT(AO41:AR41)>3,SUM(AO41:AR41),"") ->  | AT41: =IF(COUNT(AN41,AS41)>1,ROUND((AN41+AS41)/2,0),"") ->  | BD41: =IF(COUNT(AZ41:BC41)>3,SUM(AZ41:BC41),"") ->  | BY41: =IFERROR(ROUND(((AY41+BI41+BS41)*2)/3,0),"") ->  | EA41: =IF(COUNT(DW41:DZ41)>3,SUM(DW41:DZ41),"") ->  | EF41: =IF(COUNT(EB41:EE41)>3,SUM(EB41:EE41),"") ->  | EG41: =IF(COUNT(EA41,EF41)>1,ROUND((EA41+EF41)/2,0),"") ->  | EL41: =IF(COUNT(EH41:EK41)>3,SUM(EH41:EK41),"") ->  | EQ41: =IF(COUNT(EM41:EP41)>3,SUM(EM41:EP41),"") ->  | ER41: =IF(COUNT(EL41,EQ41)>1,ROUND((EL41+EQ41)/2,0),"") -> 
A42: 34
A43: 35
A44: 36
A45: 37
A46: 38
A47: 39
A48: 40
A49: 41
A50: 42
A51: 43
A52: 44
A53: 45
A54: 46
A55: 47
A56: 48
A57: 49
A58: 50
A59: 51
A60: 52
A61: 53
A62: 54
A63: 55
A64: 56
A65: 57
A66: 58
A67: 59
A68: 60
A69: 61
A70: 62
A71: 63

Sheet Moncer
J1: تجربة | T1: محمد
T2: التقويم الاول
O3: h | T3: فصل اول
N4: TRUE | O4: فصل ثاني
N5: محمد
O7: محمد
A8: الإســـم : | B8: محمد | L8: اسم الطالب
N10: 41 | Q10: 0
A14: 5 | D14: النهاية | E14: العلامــــة المستحقــــة
D16: العظمى | E16: بالارقام | F16: بالحــــروف
A17: ='Mark All'!C5 -> التربية الإسلامية | E17: =IFERROR(INDEX(('Mark All'!$C$9:$G$63,'Mark All'!$H$9:$M$63),MATCH(Moncer!$T$1,'Mark All'!$B$9:$B$63,0),MATCH(T$2,'Mark All'!$H$8:$M$8,0),(IF(NOT(ISERROR(MATCH('Mark All'!C$5,Moncer!$A$17:$A$63))),IF(T$3='Mark All'!$C$7,1,IF(T$3='Mark All'!$H$7,2,3))))),"") -> 20 | F17: =IFERROR(NombreToArabe(E17),"") -> عشرون
A18: ='Mark All'!N5 -> العربية لغتي | E18: =IFERROR(INDEX(('Mark All'!$N$9:$R$63,'Mark All'!$S$9:$X$63),MATCH(Moncer!$T$1,'Mark All'!$B$9:$B$63,0),MATCH(Moncer!T$2,'Mark All'!$S$8:$X$8,0),(IF(NOT(ISERROR(MATCH('Mark All'!N$5,Moncer!$A$17:$A$63))),IF(Moncer!T$3='Mark All'!$N$7,1,IF(Moncer!T$3='Mark All'!$S$7,2,3))))),"") -> 15 | F18: =IFERROR(NombreToArabe(E18),"") -> خمسة عشر
A19: ='Mark All'!Y5 -> اللغة الإنجليزية | E19: =IFERROR(INDEX(('Mark All'!$Y$9:$AC$63,'Mark All'!$AD$9:$AI$63),MATCH(Moncer!$T$1,'Mark All'!$B$9:$B$63,0),MATCH(Moncer!T$2,'Mark All'!$AD$8:$AI$8,0),(IF(NOT(ISERROR(MATCH('Mark All'!Y$5,Moncer!$A$17:$A$63))),IF(Moncer!T$3='Mark All'!$Y$7,1,IF(Moncer!T$3='Mark All'!$AD$7,2,3))))),"") -> 15 | F19: خمسة عشر
A20: ='Mark All'!AJ5 -> الرياضيات | E20: =IFERROR(INDEX(('Mark All'!$AJ$9:$AN$63,'Mark All'!$AO$9:$AT$63),MATCH(Moncer!$T$1,'Mark All'!$B$9:$B$63,0),MATCH(Moncer!T$2,'Mark All'!$AO$8:$AT$8,0),(IF(NOT(ISERROR(MATCH('Mark All'!AJ5,Moncer!$A$17:$A$63))),IF(Moncer!T$3='Mark All'!$AJ$7,1,IF(Moncer!T$3='Mark All'!$AO$7,2,3))))),"") -> 12 | F20: اثني عشر
A21: ='Mark All'!AU6 -> التاريخ | E21: =IFERROR(INDEX(('Mark All'!$AU$9:AY64,'Mark All'!$AZ$9:$BD$63),MATCH(Moncer!$T$1,'Mark All'!$B$9:$B$63,0),MATCH(Moncer!T$2,'Mark All'!$AZ$8:$BD$8,0),(IF(NOT(ISERROR(MATCH('Mark All'!$AU$6,Moncer!A21))),IF(Moncer!T$3='Mark All'!$AU$7,1,IF(Moncer!T$3='Mark All'!$AZ$7,2,3))))),"") -> 12 | F21: اثني عشر | P21: =IFERROR(INDEX(('Mark All'!$AU$9:AY64,'Mark All'!$AZ$9:$CA$63),MATCH(Moncer!$T$1,'Mark All'!$B$9:$B$63,0),MATCH(Moncer!T$2,'Mark All'!$AZ$8:$CA$8,0),(IF(NOT(ISERROR(MATCH('Mark All'!$AU$6,Moncer!A21))),IF(Moncer!T$3='Mark All'!$AU$7,1,IF(Moncer!T$3='Mark All'!$AZ$7,2,3))))),"") -> 12
A22: ='Mark All'!BE6 -> الجغرافيا | E22: =IFERROR(INDEX(('Mark All'!$BE$9:$BI$63,'Mark All'!$BJ$9:$BN$63),MATCH(Moncer!$T$1,'Mark All'!$B$9:$B$63,0),MATCH(Moncer!T$2,'Mark All'!$BJ$8:$BN$8,0),(IF(NOT(ISERROR(MATCH('Mark All'!$BE$6,Moncer!A22))),IF(Moncer!T$3='Mark All'!$BE$7,1,IF(Moncer!T$3='Mark All'!$BJ$7,2,3))))),"") -> 16 | F22: ستة عشر
A23: ='Mark All'!BO6 -> التربية الوطنية و المدنية | E23: =IFERROR(INDEX(('Mark All'!$BO$9:$BS$63,'Mark All'!$BT$9:$BX$63),MATCH(Moncer!$T$1,'Mark All'!$B$9:$B$63,0),MATCH(Moncer!T$2,'Mark All'!$BT$8:$BX$8,0),(IF(NOT(ISERROR(MATCH('Mark All'!$BO$6,Moncer!A23))),IF(Moncer!T$3='Mark All'!$BO$7,1,IF(Moncer!T$3='Mark All'!$BT$7,2,3))))),"") -> 10 | F23: عشرة
A24: ='Mark All'!CB6 -> الفيزياء | E24: =IFERROR(INDEX(('Mark All'!$CB$9:$CF$63,'Mark All'!$CG$9:$CL$63),MATCH(Moncer!$T$1,'Mark All'!$B$9:$B$63,0),MATCH(Moncer!T$2,'Mark All'!$CG$8:$CL$8,0),(IF(NOT(ISERROR(MATCH('Mark All'!$CB$6,Moncer!A24))),IF(Moncer!T$3='Mark All'!$CB$7,1,IF(Moncer!T$3='Mark All'!$CG$7,2,3))))),"") -> 14 | F24: أربعة عشر
A25: ='Mark All'!CM6 -> العلوم الحياتية | E25: =IFERROR(INDEX(('Mark All'!$CM$9:$CQ$63,'Mark All'!$CR$9:$CW$63),MATCH(Moncer!$T$1,'Mark All'!$B$9:$B$63,0),MATCH(Moncer!T$2,'Mark All'!$CR$8:$CW$8,0),(IF(NOT(ISERROR(MATCH('Mark All'!$CM$6,Moncer!A25))),IF(Moncer!T$3='Mark All'!$CM$7,1,IF(Moncer!T$3='Mark All'!$CR$7,2,3))))),"") -> 18 | F25: ثمانية عشر
A26: ='Mark All'!CX6 -> الكيمياء | E26: =IFERROR(INDEX(('Mark All'!CX$9:$DB$63,'Mark All'!$DC$9:$DH$63),MATCH(Moncer!$T$1,'Mark All'!$B$9:$B$63,0),MATCH(Moncer!T$2,'Mark All'!$DC$8:$DH$8,0),(IF(NOT(ISERROR(MATCH('Mark All'!$CX$6,Moncer!A26))),IF(Moncer!T$3='Mark All'!$CX$7,1,IF(Moncer!T$3='Mark All'!$DC$7,2,3))))),"") -> 15 | F26: =IFERROR(NombreToArabe(E26),"") -> خمسة عشر
A27: ='Mark All'!DI6 -> علوم الارض و البيئة | E27: =IFERROR(INDEX(('Mark All'!DI$9:$DM$63,'Mark All'!$DN$9:$DS$63),MATCH(Moncer!$T$1,'Mark All'!$B$9:$B$63,0),MATCH(Moncer!T$2,'Mark All'!$DN$8:$DS$8,0),(IF(NOT(ISERROR(MATCH('Mark All'!$DI$6,Moncer!A27))),IF(Moncer!T$3='Mark All'!$DI$7,1,IF(Moncer!T$3='Mark All'!$DN$7,2,3))))),"") -> 15 | F27: خمسة عشر
A28: ='Mark All'!DW5 -> التربية الفنية | E28: =IFERROR(INDEX(('Mark All'!DW$9:$EA$63,'Mark All'!$EB$9:$EG$63),MATCH(Moncer!$T$1,'Mark All'!$B$9:$B$63,0),MATCH(Moncer!T$2,'Mark All'!$EB$8:$EG$8,0),(IF(NOT(ISERROR(MATCH('Mark All'!$DW$5,Moncer!A28))),IF(Moncer!T$3='Mark All'!$DW$7,1,IF(Moncer!T$3='Mark All'!$EB$7,2,3))))),"") -> 18 | F28: ثمانية عشر
A29: ='Mark All'!EH5 -> التربية الرياضية | E29: =IFERROR(INDEX(('Mark All'!EH$9:$EL$63,'Mark All'!$EM$9:$ER$63),MATCH(Moncer!$T$1,'Mark All'!$B$9:$B$63,0),MATCH(Moncer!T$2,'Mark All'!$EM$8:$ER$8,0),(IF(NOT(ISERROR(MATCH('Mark All'!$EH$5,Moncer!A29))),IF(Moncer!T$3='Mark All'!$EH$7,1,IF(Moncer!T$3='Mark All'!$EM$7,2,3))))),"") -> 20 | F29: عشرون
A30: ='Mark All'!ES5 -> الحاسوب المهارات الرقمية | E30: =IFERROR(INDEX(('Mark All'!ES$9:$EW$63,'Mark All'!$EX$9:$FC$63),MATCH(Moncer!$T$1,'Mark All'!$B$9:$B$63,0),MATCH(Moncer!T$2,'Mark All'!$EX$8:$FC$8,0),(IF(NOT(ISERROR(MATCH('Mark All'!$ES$5,Moncer!A30))),IF(Moncer!T$3='Mark All'!$ES$7,1,IF(Moncer!T$3='Mark All'!$EX$7,2,3))))),"") -> 19 | F30: تسعة عشر
A31: ='Mark All'!FD5 -> الثقافة المالية | E31: =IFERROR(INDEX(('Mark All'!FD$9:$FH$63,'Mark All'!$FI$9:$FN$63),MATCH(Moncer!$T$1,'Mark All'!$B$9:$B$63,0),MATCH(Moncer!T$2,'Mark All'!$FI$8:$FN$8,0),(IF(NOT(ISERROR(MATCH('Mark All'!$FD$5,Moncer!A31))),IF(Moncer!T$3='Mark All'!$FD$7,1,IF(Moncer!T$3='Mark All'!$FI$7,2,3))))),"") -> 22 | F31: اثنان وعشرون
A32: ='Mark All'!FO5 -> اللغة الفرنسية | E32: =IFERROR(INDEX(('Mark All'!FO$9:$FS$63,'Mark All'!$FT$9:$FY$63),MATCH(Moncer!$T$1,'Mark All'!$B$9:$B$63,0),MATCH(Moncer!T$2,'Mark All'!$FT$8:$TY$8,0),(IF(NOT(ISERROR(MATCH('Mark All'!$FO$5,Moncer!A32))),IF(Moncer!T$3='Mark All'!$FO$7,1,IF(Moncer!T$3='Mark All'!$FT$7,2,3))))),"") -> 18 | F32: =IFERROR(NombreToArabe(E32),"") -> ثمانية عشر
A38: ملحوظات:
F40: إسم وتوقيع مربي الصف:
A42: خاتم المدرسة : | F42: إسم وتوقيع مدير المدرسة :
A44: توقيع ولي الأمر:

Sheet Print (hidden)
A7: الإســـم : | B7: محمد
A13: 5 | D13: النهاية | E13: العلامــــة المستحقــــة
D15: العظمى | E15: بالارقام | F15: بالحــــروف
A16: التربية الإسلامية | E16: 20 | F16: عشرون
A17: العربية لغتي | E17: 15 | F17: خمسة عشر
A18: اللغة الإنجليزية | E18: 15 | F18: خمسة عشر
A19: الرياضيات | E19: 12 | F19: اثني عشر
A20: التاريخ | E20: 12 | F20: اثني عشر
A21: الجغرافيا | E21: 16 | F21: ستة عشر
A22: التربية الوطنية و المدنية | E22: 10 | F22: عشرة
A23: الفيزياء | E23: 14 | F23: أربعة عشر
A24: العلوم الحياتية | E24: 18 | F24: ثمانية عشر
A25: الكيمياء | E25: 15 | F25: خمسة عشر
A26: علوم الارض و البيئة | E26: 15 | F26: خمسة عشر
A27: التربية الفنية | E27: 18 | F27: ثمانية عشر
A28: التربية الرياضية | E28: 20 | F28: عشرون
A29: الحاسوب المهارات الرقمية | E29: 19 | F29: تسعة عشر
A30: الثقافة المالية | E30: 22 | F30: اثنان وعشرون
A31: اللغة الفرنسية | E31: 18 | F31: ثمانية عشر
A37: ملحوظات:
F39: إسم وتوقيع مربي الصف:
A41: خاتم المدرسة : | F41: إسم وتوقيع مدير المدرسة :
A43: توقيع ولي الأمر:
A49: الإســـم : | B49: بدر
A55: 5 | D55: النهاية | E55: العلامــــة المستحقــــة
D57: العظمى | E57: بالارقام | F57: بالحــــروف
A58: التربية الإسلامية | E58: 10 | F58: عشرة
A59: العربية لغتي | E59: 22 | F59: اثنان وعشرون
A60: اللغة الإنجليزية | E60: 30 | F60: ثلاثون
A61: الرياضيات | E61: 18 | F61: ثمانية عشر
A62: التاريخ | E62: 17 | F62: سبعة عشر
A63: الجغرافيا | E63: 17 | F63: سبعة عشر
A64: التربية الوطنية و المدنية | E64: 14 | F64: أربعة عشر
A65: الفيزياء | E65: 11 | F65: إحدى عشر
A66: العلوم الحياتية | E66: 19 | F66: تسعة عشر
A67: الكيمياء | E67: 22 | F67: اثنان وعشرون
A68: علوم الارض و البيئة | E68: 10 | F68: عشرة
A69: التربية الفنية | E69: 14 | F69: أربعة عشر
A70: التربية الرياضية | E70: 14 | F70: أربعة عشر
A71: الحاسوب المهارات الرقمية | E71: 11 | F71: إحدى عشر
A72: الثقافة المالية | E72: 40 | F72: أربعون
A73: اللغة الفرنسية | E73: 10 | F73: عشرة
A79: ملحوظات:
F81: إسم وتوقيع مربي الصف:
A83: خاتم المدرسة : | F83: إسم وتوقيع مدير المدرسة :
A85: توقيع ولي الأمر:
A91: الإســـم : | B91: كمال
A97: 5 | D97: النهاية | E97: العلامــــة المستحقــــة
D99: العظمى | E99: بالارقام | F99: بالحــــروف
A100: التربية الإسلامية | E100: 35 | F100: خمسة وثلاثون
A101: العربية لغتي | E101: 28 | F101: ثمانية وعشرون
A102: اللغة الإنجليزية | E102: 55 | F102: خمسة وخمسون
A103: الرياضيات | E103: 23 | F103: ثلاثة وعشرون
A104: التاريخ | E104: 0
A105: الجغرافيا | E105: 0
A106: التربية الوطنية و المدنية | E106: 0
A107: الفيزياء | E107: 0
A108: العلوم الحياتية | E108: 0
A109: الكيمياء | E109: 0
A110: علوم الارض و البيئة | E110: 0
A111: التربية الفنية | E111: 0
A112: التربية الرياضية | E112: 0
A113: الحاسوب المهارات الرقمية | E113: 0
A114: الثقافة المالية | E114: 0
A115: اللغة الفرنسية | E115: 0
A121: ملحوظات:
F123: إسم وتوقيع مربي الصف:
A125: خاتم المدرسة : | F125: إسم وتوقيع مدير المدرسة :
A127: توقيع ولي الأمر:
A133: الإســـم : | B133: يوسف1
A139: 5 | D139: النهاية | E139: العلامــــة المستحقــــة
D141: العظمى | E141: بالارقام | F141: بالحــــروف
A142: التربية الإسلامية | E142: 45 | F142: خمسة وأربعون
A143: العربية لغتي | E143: 47 | F143: سبعة وأربعون
A144: اللغة الإنجليزية | E144: 48 | F144: ثمانية وأربعون
A145: الرياضيات | E145: 63 | F145: ثلاثة وستون
A146: التاريخ | E146: 0
A147: الجغرافيا | E147: 0
A148: التربية الوطنية و المدنية | E148: 0
A149: الفيزياء | E149: 0
A150: العلوم الحياتية | E150: 0
A151: الكيمياء | E151: 0
A152: علوم الارض و البيئة | E152: 0
A153: التربية الفنية | E153: 0
A154: التربية الرياضية | E154: 0
A155: الحاسوب المهارات الرقمية | E155: 0
A156: الثقافة المالية | E156: 0
A157: اللغة الفرنسية | E157: 0
A163: ملحوظات:
F165: إسم وتوقيع مربي الصف:
A167: خاتم المدرسة : | F167: إسم وتوقيع مدير المدرسة :
A169: توقيع ولي الأمر:
